{"text_format":"3","workbook":"xlsx","n_sheets":1,"sheets":["Készletlista"],"not_rendered":{"images":1,"defined_names":3},"read":"whole","date_system":"1900"}

{"sheet":"Készletlista","index":0,"n_rows":28,"n_cols":13,"rows_kept":28}
[{"$nulls":12}," "]
[{"$nulls":10},"Kiemeli az utánrendelendő cikkeket?","Igen"]
[null,"Utánrendeléshez","Készletazonosító","Név","Leírás","Egységár","Raktáron lévő mennyiség","Készletérték","Utánrendelési szint","Utánrendelés ideje napokban","Utánrendelési mennyiség","Megszüntetve?"]
[null,{"$f":"IFERROR((Készletlista_Táblázat[[#This Row],[Raktáron lévő mennyiség]]<=Készletlista_Táblázat[[#This Row],[Utánrendelési szint]])*(Készletlista_Táblázat[[#This Row],[Megszüntetve?]]=\"\")*értékKiemelés,0)","v":1},"IN0001","1. cikk","1. leírás",{"v":51,"d":"51.00 Ft"},25,{"$f":"Készletlista_Táblázat[[#This Row],[Egységár]]*Készletlista_Táblázat[[#This Row],[Raktáron lévő mennyiség]]","v":{"v":1275,"d":"1,275.00 Ft"}},29,13,50]
[null,{"$f":"IFERROR((Készletlista_Táblázat[[#This Row],[Raktáron lévő mennyiség]]<=Készletlista_Táblázat[[#This Row],[Utánrendelési szint]])*(Készletlista_Táblázat[[#This Row],[Megszüntetve?]]=\"\")*értékKiemelés,0)","v":1},"IN0002","2. tétel","2. leírás",{"v":93,"d":"93.00 Ft"},132,{"$f":"Készletlista_Táblázat[[#This Row],[Egységár]]*Készletlista_Táblázat[[#This Row],[Raktáron lévő mennyiség]]","v":{"v":12276,"d":"12,276.00 Ft"}},231,4,50]
[null,{"$f":"IFERROR((Készletlista_Táblázat[[#This Row],[Raktáron lévő mennyiség]]<=Készletlista_Táblázat[[#This Row],[Utánrendelési szint]])*(Készletlista_Táblázat[[#This Row],[Megszüntetve?]]=\"\")*értékKiemelés,0)","v":0},"IN0003","3. tétel","3. leírás",{"v":57,"d":"57.00 Ft"},151,{"$f":"Készletlista_Táblázat[[#This Row],[Egységár]]*Készletlista_Táblázat[[#This Row],[Raktáron lévő mennyiség]]","v":{"v":8607,"d":"8,607.00 Ft"}},114,11,150]
[null,{"$f":"IFERROR((Készletlista_Táblázat[[#This Row],[Raktáron lévő mennyiség]]<=Készletlista_Táblázat[[#This Row],[Utánrendelési szint]])*(Készletlista_Táblázat[[#This Row],[Megszüntetve?]]=\"\")*értékKiemelés,0)","v":0},"IN0004","4. tétel","4. leírás",{"v":19,"d":"19.00 Ft"},186,{"$f":"Készletlista_Táblázat[[#This Row],[Egységár]]*Készletlista_Táblázat[[#This Row],[Raktáron lévő mennyiség]]","v":{"v":3534,"d":"3,534.00 Ft"}},158,6,50]
[null,{"$f":"IFERROR((Készletlista_Táblázat[[#This Row],[Raktáron lévő mennyiség]]<=Készletlista_Táblázat[[#This Row],[Utánrendelési szint]])*(Készletlista_Táblázat[[#This Row],[Megszüntetve?]]=\"\")*értékKiemelés,0)","v":0},"IN0005","5. tétel","5. leírás",{"v":75,"d":"75.00 Ft"},62,{"$f":"Készletlista_Táblázat[[#This Row],[Egységár]]*Készletlista_Táblázat[[#This Row],[Raktáron lévő mennyiség]]","v":{"v":4650,"d":"4,650.00 Ft"}},39,12,50]
[null,{"$f":"IFERROR((Készletlista_Táblázat[[#This Row],[Raktáron lévő mennyiség]]<=Készletlista_Táblázat[[#This Row],[Utánrendelési szint]])*(Készletlista_Táblázat[[#This Row],[Megszüntetve?]]=\"\")*értékKiemelés,0)","v":1},"IN0006","6. tétel","6. leírás",{"v":11,"d":"11.00 Ft"},5,{"$f":"Készletlista_Táblázat[[#This Row],[Egységár]]*Készletlista_Táblázat[[#This Row],[Raktáron lévő mennyiség]]","v":{"v":55,"d":"55.00 Ft"}},9,13,150]
[null,{"$f":"IFERROR((Készletlista_Táblázat[[#This Row],[Raktáron lévő mennyiség]]<=Készletlista_Táblázat[[#This Row],[Utánrendelési szint]])*(Készletlista_Táblázat[[#This Row],[Megszüntetve?]]=\"\")*értékKiemelés,0)","v":0},"IN0007","7. cikk","7. leírás",{"v":56,"d":"56.00 Ft"},58,{"$f":"Készletlista_Táblázat[[#This Row],[Egységár]]*Készletlista_Táblázat[[#This Row],[Raktáron lévő mennyiség]]","v":{"v":3248,"d":"3,248.00 Ft"}},109,7,100,"Igen"]
[null,{"$f":"IFERROR((Készletlista_Táblázat[[#This Row],[Raktáron lévő mennyiség]]<=Készletlista_Táblázat[[#This Row],[Utánrendelési szint]])*(Készletlista_Táblázat[[#This Row],[Megszüntetve?]]=\"\")*értékKiemelés,0)","v":1},"IN0008","8. cikk","8. leírás",{"v":38,"d":"38.00 Ft"},101,{"$f":"Készletlista_Táblázat[[#This Row],[Egységár]]*Készletlista_Táblázat[[#This Row],[Raktáron lévő mennyiség]]","v":{"v":3838,"d":"3,838.00 Ft"}},162,3,100]
[null,{"$f":"IFERROR((Készletlista_Táblázat[[#This Row],[Raktáron lévő mennyiség]]<=Készletlista_Táblázat[[#This Row],[Utánrendelési szint]])*(Készletlista_Táblázat[[#This Row],[Megszüntetve?]]=\"\")*értékKiemelés,0)","v":0},"IN0009","9. cikk","9. leírás",{"v":59,"d":"59.00 Ft"},122,{"$f":"Készletlista_Táblázat[[#This Row],[Egységár]]*Készletlista_Táblázat[[#This Row],[Raktáron lévő mennyiség]]","v":{"v":7198,"d":"7,198.00 Ft"}},82,3,150]
[null,{"$f":"IFERROR((Készletlista_Táblázat[[#This Row],[Raktáron lévő mennyiség]]<=Készletlista_Táblázat[[#This Row],[Utánrendelési szint]])*(Készletlista_Táblázat[[#This Row],[Megszüntetve?]]=\"\")*értékKiemelés,0)","v":1},"IN0010","10. cikk","10. leírás",{"v":50,"d":"50.00 Ft"},175,{"$f":"Készletlista_Táblázat[[#This Row],[Egységár]]*Készletlista_Táblázat[[#This Row],[Raktáron lévő mennyiség]]","v":{"v":8750,"d":"8,750.00 Ft"}},283,8,150]
[null,{"$f":"IFERROR((Készletlista_Táblázat[[#This Row],[Raktáron lévő mennyiség]]<=Készletlista_Táblázat[[#This Row],[Utánrendelési szint]])*(Készletlista_Táblázat[[#This Row],[Megszüntetve?]]=\"\")*értékKiemelés,0)","v":1},"IN0011","11. cikk","11. leírás",{"v":59,"d":"59.00 Ft"},176,{"$f":"Készletlista_Táblázat[[#This Row],[Egységár]]*Készletlista_Táblázat[[#This Row],[Raktáron lévő mennyiség]]","v":{"v":10384,"d":"10,384.00 Ft"}},229,1,100]
[null,{"$f":"IFERROR((Készletlista_Táblázat[[#This Row],[Raktáron lévő mennyiség]]<=Készletlista_Táblázat[[#This Row],[Utánrendelési szint]])*(Készletlista_Táblázat[[#This Row],[Megszüntetve?]]=\"\")*értékKiemelés,0)","v":1},"IN0012","12. cikk","12. leírás",{"v":18,"d":"18.00 Ft"},22,{"$f":"Készletlista_Táblázat[[#This Row],[Egységár]]*Készletlista_Táblázat[[#This Row],[Raktáron lévő mennyiség]]","v":{"v":396,"d":"396.00 Ft"}},36,12,50]
[null,{"$f":"IFERROR((Készletlista_Táblázat[[#This Row],[Raktáron lévő mennyiség]]<=Készletlista_Táblázat[[#This Row],[Utánrendelési szint]])*(Készletlista_Táblázat[[#This Row],[Megszüntetve?]]=\"\")*értékKiemelés,0)","v":1},"IN0013","13. cikk","13. leírás",{"v":26,"d":"26.00 Ft"},72,{"$f":"Készletlista_Táblázat[[#This Row],[Egységár]]*Készletlista_Táblázat[[#This Row],[Raktáron lévő mennyiség]]","v":{"v":1872,"d":"1,872.00 Ft"}},102,9,100]
[null,{"$f":"IFERROR((Készletlista_Táblázat[[#This Row],[Raktáron lévő mennyiség]]<=Készletlista_Táblázat[[#This Row],[Utánrendelési szint]])*(Készletlista_Táblázat[[#This Row],[Megszüntetve?]]=\"\")*értékKiemelés,0)","v":1},"IN0014","14. cikk","14. leírás",{"v":42,"d":"42.00 Ft"},62,{"$f":"Készletlista_Táblázat[[#This Row],[Egységár]]*Készletlista_Táblázat[[#This Row],[Raktáron lévő mennyiség]]","v":{"v":2604,"d":"2,604.00 Ft"}},83,2,100]
[null,{"$f":"IFERROR((Készletlista_Táblázat[[#This Row],[Raktáron lévő mennyiség]]<=Készletlista_Táblázat[[#This Row],[Utánrendelési szint]])*(Készletlista_Táblázat[[#This Row],[Megszüntetve?]]=\"\")*értékKiemelés,0)","v":0},"IN0015","15. cikk","15. leírás",{"v":32,"d":"32.00 Ft"},46,{"$f":"Készletlista_Táblázat[[#This Row],[Egységár]]*Készletlista_Táblázat[[#This Row],[Raktáron lévő mennyiség]]","v":{"v":1472,"d":"1,472.00 Ft"}},23,15,50]
[null,{"$f":"IFERROR((Készletlista_Táblázat[[#This Row],[Raktáron lévő mennyiség]]<=Készletlista_Táblázat[[#This Row],[Utánrendelési szint]])*(Készletlista_Táblázat[[#This Row],[Megszüntetve?]]=\"\")*értékKiemelés,0)","v":1},"IN0016","16. cikk","16. leírás",{"v":90,"d":"90.00 Ft"},96,{"$f":"Készletlista_Táblázat[[#This Row],[Egységár]]*Készletlista_Táblázat[[#This Row],[Raktáron lévő mennyiség]]","v":{"v":8640,"d":"8,640.00 Ft"}},180,3,50]
[null,{"$f":"IFERROR((Készletlista_Táblázat[[#This Row],[Raktáron lévő mennyiség]]<=Készletlista_Táblázat[[#This Row],[Utánrendelési szint]])*(Készletlista_Táblázat[[#This Row],[Megszüntetve?]]=\"\")*értékKiemelés,0)","v":0},"IN0017","17. cikk","17. leírás",{"v":97,"d":"97.00 Ft"},57,{"$f":"Készletlista_Táblázat[[#This Row],[Egységár]]*Készletlista_Táblázat[[#This Row],[Raktáron lévő mennyiség]]","v":{"v":5529,"d":"5,529.00 Ft"}},98,12,50,"Igen"]
[null,{"$f":"IFERROR((Készletlista_Táblázat[[#This Row],[Raktáron lévő mennyiség]]<=Készletlista_Táblázat[[#This Row],[Utánrendelési szint]])*(Készletlista_Táblázat[[#This Row],[Megszüntetve?]]=\"\")*értékKiemelés,0)","v":1},"IN0018","18. cikk","18. leírás",{"v":12,"d":"12.00 Ft"},6,{"$f":"Készletlista_Táblázat[[#This Row],[Egységár]]*Készletlista_Táblázat[[#This Row],[Raktáron lévő mennyiség]]","v":{"v":72,"d":"72.00 Ft"}},7,13,50]
[null,{"$f":"IFERROR((Készletlista_Táblázat[[#This Row],[Raktáron lévő mennyiség]]<=Készletlista_Táblázat[[#This Row],[Utánrendelési szint]])*(Készletlista_Táblázat[[#This Row],[Megszüntetve?]]=\"\")*értékKiemelés,0)","v":1},"IN0019","19. cikk","19. leírás",{"v":82,"d":"82.00 Ft"},143,{"$f":"Készletlista_Táblázat[[#This Row],[Egységár]]*Készletlista_Táblázat[[#This Row],[Raktáron lévő mennyiség]]","v":{"v":11726,"d":"11,726.00 Ft"}},164,12,150]
[null,{"$f":"IFERROR((Készletlista_Táblázat[[#This Row],[Raktáron lévő mennyiség]]<=Készletlista_Táblázat[[#This Row],[Utánrendelési szint]])*(Készletlista_Táblázat[[#This Row],[Megszüntetve?]]=\"\")*értékKiemelés,0)","v":0},"IN0020","20. cikk","20. leírás",{"v":16,"d":"16.00 Ft"},124,{"$f":"Készletlista_Táblázat[[#This Row],[Egységár]]*Készletlista_Táblázat[[#This Row],[Raktáron lévő mennyiség]]","v":{"v":1984,"d":"1,984.00 Ft"}},113,14,50]
[null,{"$f":"IFERROR((Készletlista_Táblázat[[#This Row],[Raktáron lévő mennyiség]]<=Készletlista_Táblázat[[#This Row],[Utánrendelési szint]])*(Készletlista_Táblázat[[#This Row],[Megszüntetve?]]=\"\")*értékKiemelés,0)","v":0},"IN0021","21. cikk","21. leírás",{"v":19,"d":"19.00 Ft"},112,{"$f":"Készletlista_Táblázat[[#This Row],[Egységár]]*Készletlista_Táblázat[[#This Row],[Raktáron lévő mennyiség]]","v":{"v":2128,"d":"2,128.00 Ft"}},75,11,50]
[null,{"$f":"IFERROR((Készletlista_Táblázat[[#This Row],[Raktáron lévő mennyiség]]<=Készletlista_Táblázat[[#This Row],[Utánrendelési szint]])*(Készletlista_Táblázat[[#This Row],[Megszüntetve?]]=\"\")*értékKiemelés,0)","v":0},"IN0022","22. cikk","22. leírás",{"v":24,"d":"24.00 Ft"},182,{"$f":"Készletlista_Táblázat[[#This Row],[Egységár]]*Készletlista_Táblázat[[#This Row],[Raktáron lévő mennyiség]]","v":{"v":4368,"d":"4,368.00 Ft"}},132,15,150]
[null,{"$f":"IFERROR((Készletlista_Táblázat[[#This Row],[Raktáron lévő mennyiség]]<=Készletlista_Táblázat[[#This Row],[Utánrendelési szint]])*(Készletlista_Táblázat[[#This Row],[Megszüntetve?]]=\"\")*értékKiemelés,0)","v":0},"IN0023","23. cikk","23. leírás",{"v":29,"d":"29.00 Ft"},106,{"$f":"Készletlista_Táblázat[[#This Row],[Egységár]]*Készletlista_Táblázat[[#This Row],[Raktáron lévő mennyiség]]","v":{"v":3074,"d":"3,074.00 Ft"}},142,1,150,"Igen"]
[null,{"$f":"IFERROR((Készletlista_Táblázat[[#This Row],[Raktáron lévő mennyiség]]<=Készletlista_Táblázat[[#This Row],[Utánrendelési szint]])*(Készletlista_Táblázat[[#This Row],[Megszüntetve?]]=\"\")*értékKiemelés,0)","v":0},"IN0024","24. cikk","24. leírás",{"v":75,"d":"75.00 Ft"},173,{"$f":"Készletlista_Táblázat[[#This Row],[Egységár]]*Készletlista_Táblázat[[#This Row],[Raktáron lévő mennyiség]]","v":{"v":12975,"d":"12,975.00 Ft"}},127,9,100]
[null,{"$f":"IFERROR((Készletlista_Táblázat[[#This Row],[Raktáron lévő mennyiség]]<=Készletlista_Táblázat[[#This Row],[Utánrendelési szint]])*(Készletlista_Táblázat[[#This Row],[Megszüntetve?]]=\"\")*értékKiemelés,0)","v":0},"IN0025","25. cikk","25. leírás",{"v":14,"d":"14.00 Ft"},28,{"$f":"Készletlista_Táblázat[[#This Row],[Egységár]]*Készletlista_Táblázat[[#This Row],[Raktáron lévő mennyiség]]","v":{"v":392,"d":"392.00 Ft"}},21,8,50]